fUSD/lending_fUSD_20251204
["ID","MTS","AMOUNT","RATE_DAILY","PERIOD"]
[396237209,1764857443094,-500.0,0.00017833,2]
[396237210,1764857443107,-2000.0,0.00017833,2]
[396237211,1764857443121,-500.0,0.00017833,2]
[396237212,1764857443134,-500.0,0.00017833,2]
[396237213,1764857443149,-2000.0,0.00017833,2]
[396237214,1764857443162,-250.0,0.00017833,2]
[396237215,1764857443175,-500.0,0.00017833,2]
[396237217,1764857443187,-500.0,0.00017833,2]
[396237219,1764857443199,-2000.0,0.00017833,2]
[396237221,1764857443212,-500.0,0.00017833,2]
[396237223,1764857443228,-500.0,0.00017833,2]
[396237224,1764857443240,-155.52772105,0.00017833,2]
[396237226,1764857443251,-2000.0,0.00017833,2]
[396237228,1764857443263,-500.0,0.00017833,2]
[396237230,1764857443279,-2000.0,0.00017833,2]
[396237232,1764857443292,-500.0,0.00017833,2]
[396237234,1764857443303,-500.0,0.00017833,2]
[396237235,1764857443315,-500.0,0.00017833,2]
[396237236,1764857443327,-2000.0,0.00017833,2]
[396237237,1764857443339,-500.0,0.00017833,2]
[396237238,1764857443352,-500.0,0.00017833,2]
[396237239,1764857443365,-500.0,0.00017833,2]
[396237241,1764857443377,-2000.0,0.00017833,2]
[396237242,1764857443393,-500.0,0.00017833,2]
[396237243,1764857443407,-2000.0,0.00017833,2]
[396237244,1764857443420,-500.0,0.00017833,2]
[396237245,1764857443432,-500.0,0.00017833,2]
[396237246,1764857443458,-500.0,0.00017833,2]
[396237247,1764857443475,-574.12855637,0.00017833,2]
[396237248,1764857443492,-500.0,0.00017833,2]
[396237249,1764857443505,-500.0,0.00017833,2]
[396237250,1764857443521,-2340.0,0.00017833,2]
[396237251,1764857443535,-500.0,0.00017833,2]
[396237252,1764857443550,-500.0,0.00017833,2]
[396237253,1764857443564,-1000.0,0.00017833,2]
[396237254,1764857443578,-500.0,0.00017833,2]
[396237255,1764857443591,-500.0,0.00017833,2]
[396237256,1764857443604,-1000.0,0.00017833,2]
[396237257,1764857443617,-500.0,0.00017833,2]
[396237258,1764857443630,-500.0,0.00017833,2]
[396237259,1764857443644,-1000.0,0.00017833,2]
[396237260,1764857443658,-500.0,0.00017833,2]
[396237261,1764857443671,-1000.0,0.00017833,2]
[396237262,1764857443685,-500.0,0.00017833,2]
[396237263,1764857443698,-463.13997241,0.00017833,2]
[396237264,1764857443712,-1000.0,0.00017833,2]
[396237265,1764857443725,-171.28879437,0.00017833,2]
[396237266,1764857443739,-1000.0,0.00017833,2]
[396237267,1764857443751,-578.20924308,0.00017833,2]
[396237268,1764857443768,-1071.03597775,0.00017833,2]
[396237269,1764857443780,-335.66906055,0.00017833,2]
[396237270,1764857443793,-151.0,0.00017833,2]
[396237271,1764857443805,-1000.0,0.00017833,2]
[396237272,1764857443818,-1000.0,0.00017833,2]
[396237273,1764857443830,-1000.0,0.00017833,2]
[396237274,1764857443845,-1000.0,0.00017833,2]
[396237275,1764857443857,-1000.0,0.00017833,2]
[396237276,1764857443870,-151.0,0.00017833,2]
[396237277,1764857443881,-151.0,0.00017833,2]
[396237278,1764857443894,-151.0,0.00017833,2]
[396237279,1764857443906,-1469.71413574,0.00017833,2]
[396237281,1764857443918,-620.0,0.00017833,2]
[396237284,1764857443930,-311.1,0.00017833,2]
[396237286,1764857443943,-250.0,0.00017833,2]
[396237288,1764857443955,-250.0,0.00017833,2]
[396237290,1764857443966,-250.0,0.00017833,2]
[396237293,1764857443978,-250.0,0.00017833,2]
[396237295,1764857443989,-500.0,0.00017833,2]
[396237297,1764857444000,-250.0,0.00017833,2]
[396237299,1764857444012,-500.0,0.00017833,2]
[396237302,1764857444024,-250.0,0.00017833,2]
[396237304,1764857444036,-500.0,0.00017833,2]
[396237306,1764857444048,-250.0,0.00017833,2]
[396237308,1764857444060,-500.0,0.00017833,2]
[396237311,1764857444071,-250.0,0.00017833,2]
[396237313,1764857444083,-500.0,0.00017833,2]
[396237315,1764857444095,-500.0,0.00017833,2]
[396237317,1764857444108,-500.0,0.00017833,2]
[396237320,1764857444120,-500.0,0.00017833,2]
[396237322,1764857444132,-277.35679052,0.00017833,2]
[396237324,1764857444143,-500.0,0.00017833,2]
[396237326,1764857444156,-500.0,0.00017833,2]
[396237328,1764857444168,-500.0,0.00017833,2]
[396237331,1764857444180,-250.0,0.00017833,2]
[396237333,1764857444191,-250.0,0.00017833,2]
[396237335,1764857444204,-250.0,0.00017833,2]
[396237337,1764857444215,-300.0,0.00017833,2]
[396237339,1764857444227,-167.56,0.00017877,2]
[396237342,1764857444240,-381.0,0.00017877,2]
[396237344,1764857444252,-168.0,0.00017931,2]
[396237346,1764857444264,-500.0,0.00017939,2]
[396237348,1764857444277,-168.0,0.00017944,2]
[396237351,1764857444290,-500.0,0.00017949,2]
[396237353,1764857444306,-662.0,0.00017958,2]
[396237356,1764857444323,-168.0,0.00017973,2]
[396237359,1764857444342,-168.0,0.00017984,2]
[396237362,1764857444359,-300.0,0.00017999,2]
[396237365,1764857444379,-68957.98581717,0.00018,2]
[396237367,1764857444393,-887.27272926,0.00018,2]
[396237369,1764857444405,-1183.49453852,0.00018,2]
[396237371,1764857444415,-168.0,0.00018025,2]
[396237373,1764857444425,-1015.0,0.00018065,2]
[396237375,1764857444435,-500.0,0.00018076,2]
[396237377,1764857444446,-1000.0,0.00018082,2]
[396237379,1764857444456,-500.0,0.00018086,2]
[396237381,1764857444467,-662.0,0.00018095,2]
[396237383,1764857444477,-817.76,0.00018096,2]
[396237385,1764857444487,-1769.01601649,0.000181,2]
[396237392,1764857444771,-1015.0,0.00018109,2]
[396237393,1764857444796,-1015.0,0.00018166,2]
[396237394,1764857444814,-500.0,0.00018213,2]
[396237395,1764857444824,-500.0,0.00018223,2]
[396237396,1764857444834,-662.0,0.00018232,2]
[396237397,1764857444846,-166.66,0.000183,2]
[396237398,1764857444855,-500.0,0.0001835,2]
[396237399,1764857444866,-300.0,0.00018355,2]
[396237400,1764857444877,-87966.54,0.00018356,2]
[396237401,1764857444887,-221.35498138,0.00018356,2]
[396237402,1764857444897,-156.13124317,0.00018356,2]
[396237403,1764857444907,-500.0,0.0001836,2]
[396237404,1764857444917,-662.0,0.00018369,2]
[396237405,1764857444927,-817.78,0.0001837,2]
[396237406,1764857444937,-595.37131296,0.00018381,2]
[396237407,1764857444947,-2340.0,0.00018381,2]
[396237408,1764857444957,-151.0,0.00018381,2]
[396237409,1764857444967,-151.0,0.00018381,2]
[396237410,1764857444980,-151.96835927,0.00018381,2]
[396237411,1764857444990,-846.81,0.00018382,2]
[396237412,1764857445000,-1384.0,0.000184,2]
[396237413,1764857445010,-159.17,0.00018472,2]
[396237414,1764857445020,-500.0,0.00018497,2]
[396237415,1764857445030,-155.258517,0.000185,2]
[396237416,1764857445040,-151.0,0.000185,2]
[396237417,1764857445050,-151.0,0.000185,2]
[396237418,1764857445060,-1609.368558,0.000185,2]
[396237419,1764857445070,-191.686141,0.000185,2]
[396237420,1764857445080,-1609.368558,0.000185,2]
[396237421,1764857445090,-1609.368558,0.000185,2]
[396237422,1764857445100,-1609.368558,0.000185,2]
[396237423,1764857445110,-662.0,0.00018506,2]
[396237424,1764857445120,-480.06109419,0.00018605,2]
[396237425,1764857445130,-295.08504534,0.00018634,2]
[396237426,1764857445139,-662.0,0.00018643,2]
[396237427,1764857445149,-1000.0,0.0001876,2]
[396237428,1764857445159,-662.0,0.0001878,2]
[396237429,1764857445169,-151.0,0.000188,2]
[396237430,1764857445179,-151.0,0.000188,2]
[396237431,1764857445189,-151.0,0.000188,2]
[396237432,1764857445199,-150.83,0.000188,2]
[396237433,1764857445209,-150.83,0.000188,2]
[396237434,1764857445219,-150.83,0.000188,2]
[396237435,1764857445229,-150.83,0.000188,2]
[396237436,1764857445239,-150.83,0.000188,2]
[396237437,1764857445249,-150.83,0.000188,2]
[396237438,1764857445259,-5524.0,0.000188,3]
[396237439,1764857445270,-166.66,0.00018885,2]
[396237440,1764857445280,-662.0,0.00018917,2]
[396237441,1764857445290,-574.12855637,0.00018929,2]
[396237442,1764857445301,-2340.0,0.00018929,2]
[396237443,1764857445311,-184.98990013,0.00018957,2]
[396237444,1764857445321,-566.0050508,0.0001899,2]
[396237445,1764857445331,-167.56,0.00018994,2]
[396237446,1764857445341,-5139.59421298,0.00019,2]
[396237447,1764857445351,-1342.17501925,0.00019,2]
[396237448,1764857445361,-53712.63902002,0.00019,2]
[396237449,1764857445371,-300.0,0.00019,2]
[396237450,1764857445380,-318.211,0.00019023,2]
[396237451,1764857445390,-4706.0,0.00019023,2]
[396237452,1764857445400,-6510.0,0.00019023,2]
[396237453,1764857445410,-662.0,0.00019054,2]
[396237454,1764857445420,-5524.0,0.000191,5]
[396237455,1764857445429,-740.0667642,0.00019153,2]
[396237456,1764857445439,-189.6130977,0.00019159,2]
[396237457,1764857445450,-20032.75,0.00019178,2]
[396237458,1764857445460,-151.0,0.00019178,2]
[396237459,1764857445470,-182.053965,0.00019178,2]
[396237460,1764857445480,-151.0,0.00019178,2]
[396237461,1764857445490,-166.909594,0.00019178,2]
[396237462,1764857445500,-189.6464512,0.00019178,2]
[396237463,1764857445509,-151.0,0.00019178,2]
[396237464,1764857445519,-151.0,0.00019178,2]
[396237465,1764857445528,-151.0,0.00019178,2]
[396237466,1764857445538,-172.725489,0.00019178,2]
[396237467,1764857445548,-152.371997,0.00019178,2]
[396237468,1764857445558,-151.0,0.00019178,2]
[396237469,1764857445567,-156.511989,0.00019178,2]
[396237470,1764857445576,-151.0,0.00019178,2]
[396237471,1764857445585,-151.0,0.00019178,2]
[396237472,1764857445595,-151.0,0.00019178,2]
[396237473,1764857445605,-41.86450106,0.00019178,2]
[396237491,1764857446460,-109.13549894,0.00019178,2]
[396237492,1764857446469,-151.0,0.00019178,2]
[396237493,1764857446478,-118.98450107,0.00019178,2]
[396237494,1764857476611,151.9,0.00025,120]
[396237573,1764858468175,998.8820592,0.00013,2]
[396237590,1764858631485,-326.03172292,0.00015542,2]
[396237591,1764858631497,-173.96827708,0.00015542,2]
[396237592,1764858631507,-280.0,0.00015542,2]
[396237593,1764858631516,-173.06587703,0.00016081,2]
[396237594,1764858631531,-826.93412297,0.00016081,2]
[396237595,1764858631541,-528.96095409,0.00016102,2]
[396237596,1764858631550,-1911.73635643,0.000162,5]
[396237598,1764858631565,-3088.26364357,0.000162,5]
[396237600,1764858631574,-166.66,0.00016202,2]
[396237602,1764858631585,-921.86248187,0.0001632,2]
[396237603,1764858631597,-278.13751813,0.0001632,2]
[396237604,1764858631606,-311.1,0.00016321,2]
[396237605,1764858631616,-577.72918701,0.00016321,2]
[396237606,1764858631627,-0.48005607,0.00016321,2]
[396237607,1764858631637,-166.66,0.00016543,2]
[396237608,1764858631647,-300.0,0.00016697,2]
[396237609,1764858631657,-280.9907,0.000167,2]
[396237610,1764858631667,-1205.8055,0.000167,2]
[396237611,1764858631676,-2216.3753133,0.00016738,2]
[396237612,1764858631688,-325.00010413,0.00016738,2]
[396237613,1764858631699,-628.42,0.00016738,2]
[396237614,1764858631719,-1570.57116541,0.00016738,2]
[396237615,1764858631758,-420.26169723,0.00016738,2]
[396237617,1764858631770,-1355.42171993,0.00016738,2]
[396237619,1764858631780,-1420.48092684,0.00016738,2]
[396237621,1764858631791,-8579.50907316,0.00016738,2]
[396237623,1764858631800,-300.0,0.00016738,2]
[396237625,1764858631810,-463.903,0.00016739,2]
[396237627,1764858631820,-1834.01,0.00016739,2]
[396237629,1764858631829,-999.99,0.00016739,2]
[396237631,1764858631838,-150.99,0.00016739,2]
[396237633,1764858631847,-2774.47420045,0.00016739,2]
[396237636,1764858631859,-994.12251902,0.00016739,2]
[396237715,1764858637671,-961.01,0.00016739,2]
[396237716,1764858637833,-664.98932389,0.00016739,2]
[396237717,1764858637845,-4605.39395664,0.00016739,2]
[396237718,1764858637855,-1291.63069104,0.00016739,2]
[396237719,1764858637866,-338.05930896,0.00016739,2]
[396237720,1764858637876,-150.99,0.00016739,2]
[396237721,1764858637886,-10.93069104,0.0001674,2]
[396237724,1764858639583,-703.4738453,0.0001674,2]
[396237725,1764858639595,-2262.30721826,0.0001674,2]
[396237726,1764858639625,-1711.67290357,0.0001674,2]
[396237727,1764858639636,-25027.76754705,0.0001674,2]
[396237728,1764858639894,-30577.38940383,0.0001674,2]
[396237729,1764858639904,-300.0,0.0001679,2]
[396237730,1764858639913,-151.0,0.0001679,2]
[396237731,1764858639923,-976.88386487,0.0001679,2]
[396237732,1764858639933,-2340.0,0.0001679,2]
[396237733,1764858639942,-1071.03597775,0.0001679,2]
[396237734,1764858639952,-277.35679052,0.0001679,2]
[396237735,1764858639962,-151.0,0.00016797,2]
[396237736,1764858639972,-500.0,0.00016799,2]
[396237737,1764858639982,-500.0,0.00016799,2]
[396237738,1764858639991,-166.66,0.00016884,2]
[396237739,1764858640000,-2626.2342474,0.0001689,2]
[396237740,1764858640012,-2626.23424735,0.00016891,2]
[396237741,1764858640022,-2626.23424735,0.00016892,2]
[396237742,1764858640031,-2626.23424735,0.00016893,2]
[396237743,1764858640041,-2626.23424735,0.00016894,2]
[396237744,1764858640050,-2626.23424735,0.00016896,2]
[396237745,1764858640059,-2626.23424735,0.00016897,2]
[396237746,1764858640068,-2626.23424735,0.00016898,2]
[396237747,1764858640077,-2626.23424735,0.00016899,2]
[396237748,1764858640087,-257.76826559,0.000169,2]
[396237749,1764858640097,-3361.79609909,0.000169,2]
[396237750,1764858640106,-420.75030344,0.000169,2]
[396237751,1764858640115,-321.9774476,0.000169,2]
[396237752,1764858640127,-2626.23424735,0.000169,2]
[396237753,1764858640138,-32093.02340401,0.000169,2]
[396237754,1764858640148,-151.0,0.0001699,2]
[396237755,1764858640158,-2000.0,0.0001699,2]
[396237756,1764858640167,-463.13997241,0.0001699,2]
[396237757,1764858640178,-2000.0,0.0001699,2]
[396237758,1764858640187,-2000.0,0.0001699,2]
[396237759,1764858640196,-2000.0,0.0001699,2]
[396237760,1764858640206,-500.0,0.0001699,2]
[396237761,1764858640218,-2000.0,0.0001699,2]
[396237762,1764858640229,-500.0,0.0001699,2]
[396237763,1764858640238,-151.0,0.0001699,2]
[396237764,1764858640247,-2000.0,0.0001699,2]
[396237765,1764858640257,-500.0,0.0001699,2]
[396237766,1764858640267,-2000.0,0.0001699,2]
[396237767,1764858640276,-500.0,0.0001699,2]
[396237768,1764858640286,-620.0,0.0001699,2]
[396237769,1764858640295,-250.0,0.0001699,2]
[396237770,1764858640304,-2000.0,0.0001699,2]
[396237771,1764858640314,-2000.0,0.0001699,2]
[396237772,1764858640324,-1469.71413574,0.0001699,2]
[396237773,1764858640333,-2000.0,0.0001699,2]
[396237774,1764858640342,-2000.0,0.0001699,2]
[396237775,1764858640352,-574.12855637,0.0001699,2]
[396237776,1764858640362,-1000.0,0.0001699,2]
[396237777,1764858640371,-1000.0,0.0001699,2]
[396237778,1764858640380,-1000.0,0.0001699,2]
[396237779,1764858640390,-1000.0,0.0001699,2]
[396237780,1764858640400,-1000.0,0.0001699,2]
[396237781,1764858640409,-151.0,0.0001699,2]
[396237782,1764858640419,-1000.0,0.0001699,2]
[396237783,1764858640428,-1000.0,0.0001699,2]
[396237784,1764858640438,-1000.0,0.0001699,2]
[396237785,1764858640447,-1000.0,0.0001699,2]
[396237786,1764858640458,-500.0,0.0001699,2]
[396237787,1764858640468,-1000.0,0.0001699,2]
[396237788,1764858640478,-500.0,0.0001699,2]
[396237789,1764858640488,-1000.0,0.0001699,2]
[396237790,1764858640497,-500.0,0.0001699,2]
[396237791,1764858640507,-155.52772105,0.0001699,2]
[396237792,1764858640516,-500.0,0.0001699,2]
[396237793,1764858640526,-500.0,0.0001699,2]
[396237794,1764858640536,-335.66906055,0.0001699,2]
[396237795,1764858640546,-500.0,0.0001699,2]
[396237796,1764858640556,-500.0,0.0001699,2]
[396237797,1764858640566,-500.0,0.0001699,2]
[396237798,1764858640575,-500.0,0.0001699,2]
[396237799,1764858640585,-171.28879437,0.0001699,2]
[396237800,1764858640598,-500.0,0.0001699,2]
[396237801,1764858640608,-500.0,0.0001699,2]
[396237802,1764858640617,-500.0,0.0001699,2]
[396237803,1764858640627,-500.0,0.0001699,2]
[396237804,1764858640636,-500.0,0.0001699,2]
[396237805,1764858640647,-500.0,0.0001699,2]
[396237806,1764858640656,-500.0,0.0001699,2]
[396237807,1764858640666,-500.0,0.0001699,2]
[396237808,1764858640675,-500.0,0.0001699,2]
[396237809,1764858640684,-500.0,0.0001699,2]
[396237810,1764858640694,-500.0,0.0001699,2]
[396237811,1764858640703,-500.0,0.0001699,2]
[396237812,1764858640712,-500.0,0.0001699,2]
[396237813,1764858640723,-500.0,0.0001699,2]
[396237814,1764858640734,-500.0,0.0001699,2]
[396237815,1764858640743,-500.0,0.0001699,2]
[396237816,1764858640753,-500.0,0.0001699,2]
[396237817,1764858640762,-500.0,0.0001699,2]
[396237818,1764858640771,-500.0,0.0001699,2]
[396237819,1764858640781,-500.0,0.0001699,2]
[396237820,1764858640802,-500.0,0.0001699,2]
[396237821,1764858640819,-500.0,0.0001699,2]
[396237822,1764858640829,-500.0,0.0001699,2]
[396237823,1764858640839,-500.0,0.0001699,2]
[396237824,1764858640849,-500.0,0.0001699,2]
[396237825,1764858640858,-500.0,0.0001699,2]
[396237826,1764858640868,-500.0,0.0001699,2]
[396237827,1764858640877,-500.0,0.0001699,2]
[396237828,1764858640886,-500.0,0.0001699,2]
[396237829,1764858640896,-500.0,0.0001699,2]
[396237830,1764858640906,-250.0,0.0001699,2]
[396237831,1764858640915,-250.0,0.0001699,2]
[396237832,1764858640924,-250.0,0.0001699,2]
[396237833,1764858640934,-250.0,0.0001699,2]
[396237834,1764858640944,-250.0,0.0001699,2]
[396237835,1764858640953,-250.0,0.0001699,2]
[396237836,1764858640963,-250.0,0.0001699,2]
[396237837,1764858640974,-250.0,0.0001699,2]
[396237838,1764858640983,-250.0,0.0001699,2]
[396237839,1764858640993,-250.0,0.0001699,2]
[396237840,1764858641002,-250.0,0.0001699,2]
[396237841,1764858641012,-817.76,0.0001699,2]
[396237842,1764858641021,-377.33670054,0.0001699,2]
[396237843,1764858641031,-377.33670054,0.0001699,2]
[396237844,1764858641040,-377.33670054,0.0001699,2]
[396237845,1764858641049,-853.2780198,0.00016996,2]
[396237846,1764858641059,-151.0,0.00016997,2]
[396237847,1764858641069,-150.0,0.00016999,2]
[396237848,1764858641078,-500.0,0.00016999,2]
[396237849,1764858641087,-500.0,0.00016999,2]
[396237850,1764858641097,-300.0,0.00016999,2]
[396237851,1764858641105,-634.0,0.00016999,2]
[396237852,1764858641115,-500.0,0.00016999,2]
[396237853,1764858641124,-300.0,0.00016999,2]
[396237854,1764858641135,-500.0,0.00016999,2]
[396237855,1764858641145,-150.0,0.00016999,2]
[396237856,1764858641154,-500.0,0.00016999,2]
[396237857,1764858641164,-277.05276181,0.00016999,2]
[396237858,1764858641174,-327.59970339,0.00016999,2]
[396237859,1764858641183,-529.55377931,0.00016999,2]
[396237860,1764858641192,-500.0,0.00016999,2]
[396237861,1764858641201,-500.0,0.00016999,2]
[396237862,1764858641210,-500.0,0.00016999,2]
[396237863,1764858641219,-500.0,0.00016999,2]
[396237864,1764858641231,-500.0,0.00016999,2]
[396237865,1764858641241,-500.0,0.00016999,2]
[396237866,1764858641251,-500.0,0.00016999,2]
[396237867,1764858641260,-500.0,0.00016999,2]
[396237868,1764858641269,-370.63033286,0.00016999,2]
[396237869,1764858641279,-248.21679928,0.00016999,2]
[396237870,1764858641288,-500.0,0.00016999,2]
[396237871,1764858641299,-500.0,0.00016999,2]
[396237872,1764858641309,-500.0,0.00016999,2]
[396237873,1764858641318,-500.0,0.00016999,2]
[396237874,1764858641327,-500.0,0.00016999,2]
[396237875,1764858641336,-500.0,0.00016999,2]
[396237876,1764858641346,-500.0,0.00016999,2]
[396237877,1764858641355,-500.0,0.00016999,2]
[396237878,1764858641364,-500.0,0.00016999,2]
[396237879,1764858641375,-500.0,0.00016999,2]
[396237880,1764858641384,-500.0,0.00016999,2]
[396237881,1764858641394,-500.0,0.00016999,2]
[396237882,1764858641403,-500.0,0.00016999,2]
[396237883,1764858641412,-500.0,0.00016999,2]
[396237884,1764858641422,-500.0,0.00016999,2]
[396237885,1764858641431,-500.0,0.00016999,2]
[396237886,1764858641440,-500.0,0.00016999,2]
[396237887,1764858641450,-500.0,0.00016999,2]
[396237888,1764858641459,-500.0,0.00016999,2]
[396237889,1764858641468,-500.0,0.00016999,2]
[396237890,1764858641479,-500.0,0.00016999,2]
[396237891,1764858641489,-500.0,0.00016999,2]
[396237892,1764858641498,-500.0,0.00016999,2]
[396237893,1764858641507,-500.0,0.00016999,2]
[396237894,1764858641517,-500.0,0.00016999,2]
[396237895,1764858641527,-600.0,0.00016999,2]
[396237896,1764858641536,-500.0,0.00016999,2]
[396237897,1764858641545,-500.0,0.00016999,2]
[396237898,1764858641555,-500.0,0.00016999,2]
[396237899,1764858641564,-300.0,0.00016999,2]
[396237900,1764858641573,-500.0,0.00016999,2]
[396237901,1764858641582,-500.0,0.00016999,2]
[396237902,1764858641592,-350.0,0.00016999,2]
[396237903,1764858641602,-500.0,0.00016999,2]
[396237904,1764858641611,-500.0,0.00016999,2]
[396237905,1764858641621,-350.0,0.00016999,2]
[396237906,1764858641631,-500.0,0.00016999,2]
[396237907,1764858641640,-500.0,0.00016999,2]
[396237908,1764858641649,-350.0,0.00016999,2]
[396237909,1764858641659,-500.0,0.00016999,2]
[396237910,1764858641669,-500.0,0.00016999,2]
[396237912,1764858641678,-350.0,0.00016999,2]
[396237914,1764858641687,-500.0,0.00016999,2]
[396237915,1764858641696,-500.0,0.00016999,2]
[396237917,1764858641706,-350.0,0.00016999,2]
[396237919,1764858641716,-500.0,0.00016999,2]
[396237938,1764858641896,-500.0,0.00016999,2]
[396237940,1764858641906,-350.0,0.00016999,2]
[396237942,1764858641915,-500.0,0.00016999,2]
[396237944,1764858641924,-500.0,0.00016999,2]
[396237946,1764858641933,-350.0,0.00016999,2]
[396237948,1764858641942,-500.0,0.00016999,2]
[396237950,1764858641951,-500.0,0.00016999,2]
[396237952,1764858641961,-350.0,0.00016999,2]
[396237954,1764858641970,-2645431.52646154,0.00017,2]
[396237959,1764858642244,-839.15,0.00017,2]
[396237960,1764858642276,-525.82789847,0.00017,2]
[396237961,1764858642288,-4156.19990002,0.00017,2]
[396237962,1764858642326,-2098.95340702,0.00017,2]
[396237964,1764858642380,-17685.29851612,0.00017,2]
[396237975,1764858643371,-361.95461865,0.00017,2]
[396237976,1764858643381,-4128.19429225,0.00017,2]
[396237977,1764858643575,-300.0,0.00017,2]
[396237978,1764858643586,-3472.99545935,0.00017,2]
[396237979,1764858645640,-1293.51284163,0.00017,2]
[396237980,1764858645704,-10677.23332915,0.00017,2]
[396237981,1764858645715,-30257.02960391,0.00017,2]
[396237982,1764858645727,-1265.65192816,0.00017,2]
[396237983,1764858645900,-475.1917509,0.00017,2]
[396237988,1764858988222,195.1379408,8.043e-05,2]
[396237989,1764858988257,122.3220592,8.043e-05,2]
[396237990,1764858988434,317.46,8.466e-05,2]
[396237991,1764858988632,317.46,8.889e-05,2]
[396237992,1764858988870,317.46,9.312e-05,2]
[396237993,1764858989081,317.46,9.736e-05,2]
[396237994,1764858989310,317.46,0.00010159,2]
[396237995,1764858989543,317.46,0.00010582,2]
[396237996,1764858989785,317.46,0.00011006,2]
[396237997,1764858990003,317.46,0.00011429,2]
[396237998,1764858990231,317.46,0.00011852,2]
[396237999,1764858990440,317.46,0.00012276,2]
[396238000,1764858990644,317.46,0.00012699,2]
[396238001,1764858994050,-290.30449822,0.00013122,2]
[396238005,1764859083969,-27.15550178,0.00013122,2]
[396238006,1764859083991,-317.46,0.00013545,2]
[396238007,1764859084016,-317.46,0.00013969,2]
[396238008,1764859084041,-37.92449822,0.00014392,2]
[396238014,1764859354768,-1492.76776932,0.00014286,2]
[396238015,1764859354798,-268.0,0.00014286,2]
[396238016,1764859354829,-178.0,0.00014299,2]
[396238017,1764859354858,-500.0,0.00014299,2]
[396238018,1764859354890,-8750.27533068,0.000143,2]
[396238019,1764859677708,5000.0,0.00022,30]
[396238039,1764859831782,-1200.0,0.00014199,2]
[396238040,1764859831792,-267.0,0.00014199,2]
[396238041,1764859831803,-87.14613501,0.000142,2]
[396238042,1764859831814,-950.26546194,0.000142,2]
[396238043,1764859831825,-390.37271931,0.000142,2]
[396238044,1764859831837,-5734.87687999,0.000142,2]
[396238045,1764859831870,-16593.92250884,0.000142,2]
[396238047,1764859831926,-0.26023501,0.000142,2]
[396238048,1764859831938,-4104.64981039,0.000142,2]
[396238050,1764859837944,-13747.96828321,0.000142,2]
[396238051,1764859837956,-5739.18585998,0.000142,2]
[396238052,1764859837967,-27733.41037172,0.000142,2]
[396238053,1764859838003,-599.86987956,0.000142,2]
[396238087,1764859839757,-533.48447,0.000142,2]
[396238088,1764859839986,-1909.72280887,0.000142,2]
[396238089,1764859839998,-1725.12,0.000142,2]
[396238090,1764859840048,-166131.07043766,0.000142,2]
[396238091,1764859840058,-200.0,0.00014291,2]
[396238092,1764859840067,-151.0,0.00014291,2]
[396238093,1764859840250,-151.0,0.00014291,2]
[396238094,1764859840275,-151.0,0.00014291,2]
[396238095,1764859840285,-500.0,0.00014291,2]
[396238097,1764859840294,-151.0,0.00014291,2]
[396238099,1764859840303,-151.0,0.00014291,2]
[396238101,1764859840312,-151.0,0.00014291,2]
[396238103,1764859840322,-151.0,0.00014291,2]